[Event "*** SCC Grand Prix: Titled Tuesday Blitz"]
[Site "Chess.com"]
[Date "2020.09.08"]
[Round "6"]
[White "korbul"]
[Black "sokidze"]
[Result "0-1"]
[WhiteElo "2456"]
[BlackElo "2615"]
[TimeControl "180+1"]
[EndTime "11:08:11 PDT"]
[Termination "sokidze won by checkmate"]

1. e4 {[%clk 0:03:00.9]} 1... c5 {[%clk 0:02:59.8]} 2. Nf3 {[%clk 0:03:00.3]}
2... Nc6 {[%clk 0:02:59.7]} 3. d4 {[%clk 0:02:59.4]} 3... cxd4 {[%clk
0:03:00.6]} 4. Nxd4 {[%clk 0:02:59.6]} 4... g6 {[%clk 0:03:00.8]} 5. Nc3 {[%clk
0:02:58.7]} 5... Bg7 {[%clk 0:03:01.1]} 6. Be3 {[%clk 0:02:58.7]} 6... Nf6
{[%clk 0:03:00.8]} 7. Bc4 {[%clk 0:02:58.3]} 7... O-O {[%clk 0:03:00.3]} 8. Bb3
{[%clk 0:02:58.3]} 8... Re8 {[%clk 0:03:00.5]} 9. h3 {[%clk 0:02:57.7]} 9... d6
{[%clk 0:02:58.6]} 10. O-O {[%clk 0:02:56.9]} 10... Na5 {[%clk 0:02:57.9]} 11.
Qd2 {[%clk 0:02:52.5]} 11... a6 {[%clk 0:02:54.5]} 12. Rfe1 {[%clk 0:02:51.9]}
12... Qc7 {[%clk 0:02:54.2]} 13. Bh6 {[%clk 0:02:49]} 13... Bh8 {[%clk
0:02:46.2]} 14. Bg5 {[%clk 0:02:48.6]} 14... Qc5 {[%clk 0:02:43.8]} 15. Rad1
{[%clk 0:02:32]} 15... b5 {[%clk 0:01:35.9]} 16. Nd5 {[%clk 0:01:46.8]} 16...
Nxb3 {[%clk 0:01:28.3]} 17. Nxb3 {[%clk 0:01:45.4]} 17... Qc6 {[%clk 0:01:25.2]}
18. Nxf6+ {[%clk 0:01:41.3]} 18... exf6 {[%clk 0:01:24.8]} 19. Bh6 {[%clk
0:01:38.8]} 19... Bb7 {[%clk 0:01:13.8]} 20. f3 {[%clk 0:01:38.3]} 20... Rad8
{[%clk 0:01:08.5]} 21. Na5 {[%clk 0:01:31]} 21... Qc7 {[%clk 0:00:56.5]} 22.
Nxb7 {[%clk 0:01:30.3]} 22... Qxb7 {[%clk 0:00:57.4]} 23. Kh1 {[%clk 0:01:19.4]}
23... Qc6 {[%clk 0:00:52.7]} 24. Re3 {[%clk 0:01:17.4]} 24... Bg7 {[%clk
0:00:39.8]} 25. Bxg7 {[%clk 0:01:14.9]} 25... Kxg7 {[%clk 0:00:40.7]} 26. Rc3
{[%clk 0:01:13.4]} 26... Qb6 {[%clk 0:00:38.2]} 27. Rd3 {[%clk 0:01:13]} 27...
Re6 {[%clk 0:00:38.1]} 28. a3 {[%clk 0:01:10.5]} 28... Qc6 {[%clk 0:00:37.6]}
29. c3 {[%clk 0:01:10.1]} 29... h5 {[%clk 0:00:36.8]} 30. Rd5 {[%clk 0:01:09.4]}
30... Rd7 {[%clk 0:00:32.2]} 31. Qd4 {[%clk 0:01:08.8]} 31... Rd8 {[%clk
0:00:28.6]} 32. g4 {[%clk 0:01:07.6]} 32... hxg4 {[%clk 0:00:27]} 33. hxg4
{[%clk 0:01:07.8]} 33... Qd7 {[%clk 0:00:21.3]} 34. Kg2 {[%clk 0:01:07.3]} 34...
Qe7 {[%clk 0:00:10.1]} 35. a4 {[%clk 0:00:58]} 35... bxa4 {[%clk 0:00:09.5]} 36.
Qxa4 {[%clk 0:00:57.3]} 36... Rh8 {[%clk 0:00:09.8]} 37. Qd4 {[%clk 0:00:56]}
37... Rd8 {[%clk 0:00:06.9]} 38. b4 {[%clk 0:00:55.6]} 38... Rd7 {[%clk
0:00:06.2]} 39. c4 {[%clk 0:00:55.2]} 39... Rd8 {[%clk 0:00:06.6]} 40. Qd3
{[%clk 0:00:53.5]} 40... Rd7 {[%clk 0:00:04]} 41. c5 {[%clk 0:00:52.8]} 41...
Rd8 {[%clk 0:00:03]} 42. cxd6 {[%clk 0:00:52.8]} 42... Qd7 {[%clk 0:00:03.5]}
43. Qd4 {[%clk 0:00:52.7]} 43... Rh8 {[%clk 0:00:02.9]} 44. g5 {[%clk
0:00:52.2]} 44... Rhe8 {[%clk 0:00:01.8]} 45. gxf6+ {[%clk 0:00:51.2]} 45...
Rxf6 {[%clk 0:00:02.7]} 46. Rc5 {[%clk 0:00:50.3]} 46... Rh8 {[%clk 0:00:02.4]}
47. Kf2 {[%clk 0:00:49.1]} 47... Qh3 {[%clk 0:00:02.5]} 48. Ke3 {[%clk
0:00:48.6]} 48... Qxf3+ {[%clk 0:00:02.8]} 49. Kd2 {[%clk 0:00:48.7]} 49... Rh2+
{[%clk 0:00:03.5]} 50. Kc1 {[%clk 0:00:47.6]} 50... Qa3+ {[%clk 0:00:04.1]} 51.
Kb1 {[%clk 0:00:46.4]} 51... Qa2+ {[%clk 0:00:04.6]} 52. Kc1 {[%clk 0:00:46.2]}
52... Kh6 {[%clk 0:00:02.8]} 53. Qe3+ {[%clk 0:00:45.1]} 53... Kh7 {[%clk
0:00:02.8]} 54. Qc3 {[%clk 0:00:45.1]} 54... Rff2 {[%clk 0:00:02.8]} 55. d7
{[%clk 0:00:42.8]} 55... Rb2 {[%clk 0:00:03.3]} 56. Qh8+ {[%clk 0:00:41.3]}
56... Kxh8 {[%clk 0:00:03.7]} 57. d8=Q+ {[%clk 0:00:39.9]} 57... Kh7 {[%clk
0:00:04.3]} 58. Rh5+ {[%clk 0:00:39.7]} 58... Rxh5 {[%clk 0:00:03]} 59. Qd4
{[%clk 0:00:37.4]} 59... Qa1# {[%clk 0:00:03.2]} 0-1

[Event "*** SCC Grand Prix: Titled Tuesday Blitz"]
[Site "Chess.com"]
[Date "2020.09.08"]
[Round "6"]
[White "Dr-Bassem"]
[Black "pedromartinez91"]
[Result "1-0"]
[WhiteElo "2776"]
[BlackElo "2493"]
[TimeControl "180+1"]
[EndTime "11:08:12 PDT"]
[Termination "Dr-Bassem won on time"]

1. e4 {[%clk 0:03:00.9]} 1... d5 {[%clk 0:02:58.4]} 2. exd5 {[%clk 0:02:59.9]}
2... Qxd5 {[%clk 0:02:59.3]} 3. Nc3 {[%clk 0:02:59.7]} 3... Qd8 {[%clk
0:02:59.2]} 4. d4 {[%clk 0:03:00.3]} 4... Nf6 {[%clk 0:02:59.3]} 5. Nf3 {[%clk
0:02:58.1]} 5... g6 {[%clk 0:02:59.5]} 6. Bc4 {[%clk 0:02:57.6]} 6... Bg7 {[%clk
0:02:57.5]} 7. O-O {[%clk 0:02:55.4]} 7... O-O {[%clk 0:02:57.8]} 8. Ne5 {[%clk
0:02:53.4]} 8... Nbd7 {[%clk 0:02:48.2]} 9. Bg5 {[%clk 0:02:49.4]} 9... Nb6
{[%clk 0:02:46.1]} 10. Bb3 {[%clk 0:02:49.1]} 10... a5 {[%clk 0:02:46.7]} 11. a4
{[%clk 0:02:41.6]} 11... c6 {[%clk 0:02:46.7]} 12. Re1 {[%clk 0:02:34.8]} 12...
Nbd5 {[%clk 0:02:45.4]} 13. Qf3 {[%clk 0:02:27.7]} 13... Be6 {[%clk 0:02:44.4]}
14. Nd3 {[%clk 0:02:04.6]} 14... Nc7 {[%clk 0:02:31.1]} 15. Nc5 {[%clk
0:01:35.9]} 15... Bxb3 {[%clk 0:02:29.7]} 16. Nxb3 {[%clk 0:01:32.9]} 16... Ne6
{[%clk 0:02:20.5]} 17. Be3 {[%clk 0:01:29.5]} 17... Nd5 {[%clk 0:02:15.9]} 18.
Nxd5 {[%clk 0:01:27.3]} 18... Qxd5 {[%clk 0:02:14.3]} 19. Qxd5 {[%clk
0:01:26.7]} 19... cxd5 {[%clk 0:02:15.2]} 20. c3 {[%clk 0:01:26.8]} 20... Rfb8
{[%clk 0:02:05.6]} 21. Nc1 {[%clk 0:01:20.5]} 21... b5 {[%clk 0:02:04.3]} 22.
Nd3 {[%clk 0:01:16.9]} 22... b4 {[%clk 0:01:32.1]} 23. cxb4 {[%clk 0:00:56.8]}
23... axb4 {[%clk 0:01:25.2]} 24. a5 {[%clk 0:00:57.2]} 24... Bxd4 {[%clk
0:01:07.5]} 25. Bxd4 {[%clk 0:00:51.4]} 25... Nxd4 {[%clk 0:01:07.5]} 26. Rxe7
{[%clk 0:00:50.3]} 26... Nb3 {[%clk 0:01:07.5]} 27. Rd1 {[%clk 0:00:45.2]} 27...
Rxa5 {[%clk 0:00:59.1]} 28. Ne5 {[%clk 0:00:45.2]} 28... Rf8 {[%clk 0:00:59]}
29. Rb7 {[%clk 0:00:31.1]} 29... Re8 {[%clk 0:00:20.8]} 30. Nc6 {[%clk
0:00:21.6]} 30... Ra1 {[%clk 0:00:17.7]} 31. Rxa1 {[%clk 0:00:21.2]} 31... Nxa1
{[%clk 0:00:18.5]} 32. g3 {[%clk 0:00:20.6]} 32... Nc2 {[%clk 0:00:12.5]} 33.
Ne7+ {[%clk 0:00:17.8]} 33... Kg7 {[%clk 0:00:11.5]} 34. Nxd5 {[%clk 0:00:14.3]}
34... Re4 {[%clk 0:00:08.1]} 35. Kf1 {[%clk 0:00:11.7]} 35... Rd4 {[%clk
0:00:08.3]} 36. Nf4 {[%clk 0:00:09.4]} 36... Rd2 {[%clk 0:00:07.2]} 37. b3
{[%clk 0:00:05.9]} 37... Nd4 {[%clk 0:00:05.2]} 38. Rxb4 {[%clk 0:00:05.9]}
38... g5 {[%clk 0:00:02.1]} 39. Nd5 {[%clk 0:00:02.8]} 39... h5 {[%clk
0:00:02.3]} 40. Ne3 {[%clk 0:00:03]} 40... g4 {[%clk 0:00:02.2]} 41. Kg2 {[%clk
0:00:02.7]} 41... Nf3 {[%clk 0:00:02.3]} 42. h3 {[%clk 0:00:03.2]} 42... Ne1+
{[%clk 0:00:01.5]} 43. Kf1 {[%clk 0:00:03.6]} 43... Nd3 {[%clk 0:00:01.1]} 44.
Rd4 {[%clk 0:00:03.5]} 1-0

[Event "*** SCC Grand Prix: Titled Tuesday Blitz"]
[Site "Chess.com"]
[Date "2020.09.08"]
[Round "6"]
[White "CrazyMartian"]
[Black "ljuks68"]
[Result "1-0"]
[WhiteElo "2317"]
[BlackElo "2409"]
[TimeControl "180+1"]
[EndTime "11:08:13 PDT"]
[Termination "CrazyMartian won on time"]

1. d4 {[%clk 0:03:00.9]} 1... d5 {[%clk 0:02:59.7]} 2. Bf4 {[%clk 0:03:00.3]}
2... Nf6 {[%clk 0:02:59.4]} 3. e3 {[%clk 0:02:59.7]} 3... c5 {[%clk 0:02:59.6]}
4. c3 {[%clk 0:02:59.5]} 4... Nc6 {[%clk 0:02:59.9]} 5. Nd2 {[%clk 0:03:00.1]}
5... Qb6 {[%clk 0:02:59.2]} 6. Qb3 {[%clk 0:02:59.6]} 6... c4 {[%clk 0:02:59.2]}
7. Qc2 {[%clk 0:03:00.1]} 7... Bg4 {[%clk 0:02:56.9]} 8. e4 {[%clk 0:02:58.2]}
8... e6 {[%clk 0:02:55.2]} 9. h4 {[%clk 0:02:52.5]} 9... Bh5 {[%clk 0:02:45.2]}
10. b3 {[%clk 0:02:42.8]} 10... cxb3 {[%clk 0:02:40.4]} 11. axb3 {[%clk
0:02:42]} 11... Bg6 {[%clk 0:02:39.5]} 12. f3 {[%clk 0:02:35.1]} 12... Rc8
{[%clk 0:02:29.3]} 13. Qb1 {[%clk 0:02:29]} 13... dxe4 {[%clk 0:02:20.4]} 14.
fxe4 {[%clk 0:02:28.3]} 14... e5 {[%clk 0:02:20.5]} 15. dxe5 {[%clk 0:02:24.5]}
15... Ng4 {[%clk 0:02:18.4]} 16. Ngf3 {[%clk 0:02:12.8]} 16... Qf2+ {[%clk
0:01:59.8]} 17. Kd1 {[%clk 0:02:11.3]} 17... h6 {[%clk 0:01:49.7]} 18. Bb5
{[%clk 0:02:05]} 18... Qc5 {[%clk 0:01:46.7]} 19. Bxc6+ {[%clk 0:02:00.2]} 19...
Qxc6 {[%clk 0:01:44.5]} 20. Ke2 {[%clk 0:01:46.4]} 20... Bc5 {[%clk 0:01:23.9]}
21. Nd4 {[%clk 0:01:42]} 21... Qd7 {[%clk 0:01:19.5]} 22. N2f3 {[%clk
0:01:40.7]} 22... O-O {[%clk 0:01:15.9]} 23. Rd1 {[%clk 0:01:40.3]} 23... Qe7
{[%clk 0:01:12.4]} 24. Kf1 {[%clk 0:01:38.1]} 24... Bb6 {[%clk 0:01:04.9]} 25.
c4 {[%clk 0:01:10.2]} 25... Rfd8 {[%clk 0:00:59]} 26. g3 {[%clk 0:00:59.4]}
26... f6 {[%clk 0:00:45.8]} 27. e6 {[%clk 0:00:56.2]} 27... Ne5 {[%clk
0:00:21.8]} 28. Kg2 {[%clk 0:00:46.7]} 28... Bh5 {[%clk 0:00:18.4]} 29. Bxe5
{[%clk 0:00:31.1]} 29... fxe5 {[%clk 0:00:16.9]} 30. Nf5 {[%clk 0:00:25.2]}
30... Qxe6 {[%clk 0:00:16]} 31. Qc2 {[%clk 0:00:19.1]} 31... g6 {[%clk
0:00:15.8]} 32. Rxd8+ {[%clk 0:00:08.5]} 32... Rxd8 {[%clk 0:00:15.1]} 33. c5
{[%clk 0:00:08.9]} 33... Bc7 {[%clk 0:00:11.1]} 34. Nd6 {[%clk 0:00:09.1]} 34...
Bxd6 {[%clk 0:00:10.9]} 35. cxd6 {[%clk 0:00:10]} 35... Rxd6 {[%clk 0:00:10.7]}
36. Rd1 {[%clk 0:00:09.4]} 36... Rd7 {[%clk 0:00:09.2]} 37. Rxd7 {[%clk
0:00:09.2]} 37... Qxd7 {[%clk 0:00:09.1]} 38. Qc1 {[%clk 0:00:09.5]} 38... Kh7
{[%clk 0:00:08.1]} 39. Nxe5 {[%clk 0:00:09]} 39... Qe6 {[%clk 0:00:07.8]} 40.
Qc3 {[%clk 0:00:09.1]} 40... g5 {[%clk 0:00:05.3]} 41. hxg5 {[%clk 0:00:08.9]}
41... hxg5 {[%clk 0:00:05.4]} 42. Qd4 {[%clk 0:00:09.6]} 42... Be2 {[%clk
0:00:03.4]} 43. Kf2 {[%clk 0:00:09]} 43... Bb5 {[%clk 0:00:02.8]} 44. Nf3 {[%clk
0:00:09.3]} 44... Bc6 {[%clk 0:00:02.3]} 45. Nxg5+ {[%clk 0:00:09.4]} 45... Kg6
{[%clk 0:00:02.7]} 46. Nxe6 {[%clk 0:00:10.3]} 1-0

[Event "*** SCC Grand Prix: Titled Tuesday Blitz"]
[Site "Chess.com"]
[Date "2020.09.08"]
[Round "6"]
[White "adiosabu"]
[Black "Alexander_Moskalenko"]
[Result "0-1"]
[WhiteElo "2522"]
[BlackElo "2800"]
[TimeControl "180+1"]
[EndTime "11:08:15 PDT"]
[Termination "Alexander_Moskalenko won on time"]

1. d4 {[%clk 0:03:00.9]} 1... d5 {[%clk 0:02:50.5]} 2. Nf3 {[%clk 0:03:00.1]}
2... c6 {[%clk 0:02:46.5]} 3. c4 {[%clk 0:02:53.2]} 3... Nf6 {[%clk 0:02:47.4]}
4. e3 {[%clk 0:02:52]} 4... Bf5 {[%clk 0:02:45.3]} 5. Nc3 {[%clk 0:02:49.8]}
5... e6 {[%clk 0:02:45]} 6. Qb3 {[%clk 0:02:42.1]} 6... Qc7 {[%clk 0:02:44.6]}
7. h3 {[%clk 0:02:38.6]} 7... Nbd7 {[%clk 0:02:38.9]} 8. Be2 {[%clk 0:02:37.1]}
8... Be7 {[%clk 0:02:33.9]} 9. O-O {[%clk 0:02:35.4]} 9... O-O {[%clk
0:02:33.2]} 10. Bd2 {[%clk 0:02:35.1]} 10... Ne4 {[%clk 0:01:59.7]} 11. Nxe4
{[%clk 0:02:18.9]} 11... Bxe4 {[%clk 0:02:00.6]} 12. Rfc1 {[%clk 0:02:12.5]}
12... Rfe8 {[%clk 0:01:55.3]} 13. a4 {[%clk 0:02:09.3]} 13... a5 {[%clk
0:01:54.8]} 14. Bd3 {[%clk 0:01:43.1]} 14... Bxd3 {[%clk 0:01:53.5]} 15. Qxd3
{[%clk 0:01:42.4]} 15... Qb6 {[%clk 0:01:54.4]} 16. c5 {[%clk 0:01:39.2]} 16...
Qa6 {[%clk 0:01:54.6]} 17. Qc2 {[%clk 0:01:31.8]} 17... Rac8 {[%clk 0:01:39.8]}
18. e4 {[%clk 0:01:30]} 18... b6 {[%clk 0:01:35.1]} 19. exd5 {[%clk 0:01:23.1]}
19... exd5 {[%clk 0:01:36]} 20. Be3 {[%clk 0:01:18.2]} 20... bxc5 {[%clk
0:01:33.1]} 21. dxc5 {[%clk 0:01:17.8]} 21... Nf8 {[%clk 0:01:34]} 22. Bd4
{[%clk 0:01:04.5]} 22... Ne6 {[%clk 0:01:33.8]} 23. Qf5 {[%clk 0:01:03.9]} 23...
g6 {[%clk 0:01:27.6]} 24. Qe5 {[%clk 0:00:55.6]} 24... Nxd4 {[%clk 0:01:27.6]}
25. Qxd4 {[%clk 0:00:55.6]} 25... Bf8 {[%clk 0:01:28.3]} 26. Re1 {[%clk
0:00:55]} 26... Bg7 {[%clk 0:01:27]} 27. Qd2 {[%clk 0:00:53.8]} 27... Qc4 {[%clk
0:01:26.9]} 28. Qxa5 {[%clk 0:00:49.2]} 28... Bxb2 {[%clk 0:01:25.4]} 29. Rxe8+
{[%clk 0:00:46.4]} 29... Rxe8 {[%clk 0:01:25.5]} 30. Re1 {[%clk 0:00:46.1]}
30... Rxe1+ {[%clk 0:01:22.4]} 31. Nxe1 {[%clk 0:00:45.3]} 31... Bc3 {[%clk
0:01:19.7]} 32. Qd8+ {[%clk 0:00:26.1]} 32... Kg7 {[%clk 0:01:19.6]} 33. Nf3
{[%clk 0:00:26.6]} 33... Qxc5 {[%clk 0:01:19.9]} 34. Qd7 {[%clk 0:00:18.1]}
34... Bf6 {[%clk 0:01:13.3]} 35. g4 {[%clk 0:00:18.3]} 35... h6 {[%clk
0:01:12.6]} 36. h4 {[%clk 0:00:18.1]} 36... d4 {[%clk 0:01:12.7]} 37. Kg2 {[%clk
0:00:16.9]} 37... g5 {[%clk 0:01:07.7]} 38. hxg5 {[%clk 0:00:15.6]} 38... hxg5
{[%clk 0:01:08.6]} 39. a5 {[%clk 0:00:13.3]} 39... Qxa5 {[%clk 0:01:07.6]} 40.
Nxd4 {[%clk 0:00:13.6]} 40... Bxd4 {[%clk 0:01:06.7]} 41. Qxd4+ {[%clk
0:00:13.3]} 41... Kg8 {[%clk 0:01:02.7]} 42. f3 {[%clk 0:00:10.9]} 42... Qd5
{[%clk 0:01:00.8]} 43. Qf6 {[%clk 0:00:10.8]} 43... Kf8 {[%clk 0:01:01]} 44.
Qh8+ {[%clk 0:00:10.2]} 44... Ke7 {[%clk 0:01:01.2]} 45. Qc8 {[%clk 0:00:10.9]}
45... Kd6 {[%clk 0:00:59.8]} 46. Qb7 {[%clk 0:00:09.1]} 46... Kc5 {[%clk
0:00:58.1]} 47. Qa7+ {[%clk 0:00:08.6]} 47... Kb5 {[%clk 0:00:58.1]} 48. Qb7+
{[%clk 0:00:08.5]} 48... Kc4 {[%clk 0:00:58.3]} 49. Qa6+ {[%clk 0:00:08.7]}
49... Kc3 {[%clk 0:00:57.5]} 50. Qa3+ {[%clk 0:00:08.3]} 50... Kd2 {[%clk
0:00:57.7]} 51. Qb2+ {[%clk 0:00:08.4]} 51... Ke1 {[%clk 0:00:56.7]} 52. Qc1+
{[%clk 0:00:08.2]} 52... Ke2 {[%clk 0:00:56.9]} 53. Qf1+ {[%clk 0:00:07.7]}
53... Kd2 {[%clk 0:00:55.7]} 54. Qf2+ {[%clk 0:00:06.9]} 54... Kd1 {[%clk
0:00:53.7]} 55. Qa7 {[%clk 0:00:05.5]} 55... c5 {[%clk 0:00:51.4]} 56. Qa1+
{[%clk 0:00:04.6]} 56... Ke2 {[%clk 0:00:49.9]} 57. Qb2+ {[%clk 0:00:04.5]}
57... Qd2 {[%clk 0:00:49]} 58. Qb5+ {[%clk 0:00:03.7]} 58... Qd3 {[%clk
0:00:41.8]} 59. Qe8+ {[%clk 0:00:02.8]} 59... Kd1 {[%clk 0:00:33.7]} 60. Qxf7
{[%clk 0:00:02.7]} 60... c4 {[%clk 0:00:34.2]} 0-1

[Event "*** SCC Grand Prix: Titled Tuesday Blitz"]
[Site "Chess.com"]
[Date "2020.09.08"]
[Round "6"]
[White "frederiksvane"]
[Black "omer1997"]
[Result "0-1"]
[WhiteElo "2673"]
[BlackElo "2419"]
[TimeControl "180+1"]
[EndTime "11:08:15 PDT"]
[Termination "omer1997 won by resignation"]

1. e4 {[%clk 0:03:00.9]} 1... e5 {[%clk 0:02:52.9]} 2. Nf3 {[%clk 0:03:00.5]}
2... Nf6 {[%clk 0:02:53.3]} 3. Nxe5 {[%clk 0:03:00.6]} 3... d6 {[%clk
0:02:53.2]} 4. Nf3 {[%clk 0:03:01]} 4... Nxe4 {[%clk 0:02:53.9]} 5. c4 {[%clk
0:03:01.5]} 5... c6 {[%clk 0:02:53.5]} 6. Nc3 {[%clk 0:03:01.9]} 6... Nxc3
{[%clk 0:02:52.7]} 7. dxc3 {[%clk 0:03:02.8]} 7... Be7 {[%clk 0:02:53.4]} 8. Bd3
{[%clk 0:03:03]} 8... O-O {[%clk 0:02:53.3]} 9. O-O {[%clk 0:03:03.5]} 9... Nd7
{[%clk 0:02:53.8]} 10. Bf4 {[%clk 0:03:02.2]} 10... Nf6 {[%clk 0:02:47.3]} 11.
Qc2 {[%clk 0:03:00.8]} 11... Bg4 {[%clk 0:02:44.7]} 12. Nd4 {[%clk 0:03:01]}
12... Re8 {[%clk 0:02:40.4]} 13. h3 {[%clk 0:02:58.9]} 13... Bh5 {[%clk
0:02:39.6]} 14. Nf5 {[%clk 0:02:54.3]} 14... Bg6 {[%clk 0:02:32.8]} 15. Rad1
{[%clk 0:02:49.2]} 15... Bf8 {[%clk 0:02:29.8]} 16. Nxd6 {[%clk 0:02:41.5]}
16... Bxd6 {[%clk 0:02:24.4]} 17. Bxg6 {[%clk 0:02:35]} 17... hxg6 {[%clk
0:02:22.7]} 18. Rxd6 {[%clk 0:02:35.2]} 18... Qa5 {[%clk 0:02:20.5]} 19. b3
{[%clk 0:02:30.7]} 19... Ne4 {[%clk 0:02:15.9]} 20. Rd3 {[%clk 0:02:25.5]} 20...
Qf5 {[%clk 0:02:11.1]} 21. Be3 {[%clk 0:02:15.2]} 21... Re6 {[%clk 0:01:55.5]}
22. Rfd1 {[%clk 0:02:11.7]} 22... Rae8 {[%clk 0:01:55.1]} 23. Rd8 {[%clk
0:02:09.8]} 23... Rxd8 {[%clk 0:01:47.4]} 24. Rxd8+ {[%clk 0:02:10.7]} 24... Kh7
{[%clk 0:01:47.9]} 25. Rd7 {[%clk 0:01:43.5]} 25... Qe5 {[%clk 0:00:52.5]} 26.
Rxf7 {[%clk 0:01:25.2]} 26... Nd6 {[%clk 0:00:45.1]} 27. Rd7 {[%clk 0:00:55.7]}
27... Nf5 {[%clk 0:00:44.9]} 28. Rd3 {[%clk 0:00:53.1]} 28... Qe4 {[%clk
0:00:42]} 29. Qd2 {[%clk 0:00:52.4]} 29... Qh4 {[%clk 0:00:40.1]} 30. Bxa7
{[%clk 0:00:44.9]} 30... Qe7 {[%clk 0:00:28.4]} 31. Be3 {[%clk 0:00:39.5]} 31...
Qf6 {[%clk 0:00:29]} 32. Rd7 {[%clk 0:00:23]} 32... Qh4 {[%clk 0:00:27.4]} 33.
Rxb7 {[%clk 0:00:17.8]} 33... Qe4 {[%clk 0:00:24.2]} 34. Rd7 {[%clk 0:00:14.2]}
34... Nh4 {[%clk 0:00:24]} 35. f3 {[%clk 0:00:08.6]} 35... Qxe3+ {[%clk
0:00:23.8]} 36. Qxe3 {[%clk 0:00:08.8]} 36... Rxe3 {[%clk 0:00:24.7]} 37. Rd6
{[%clk 0:00:06.6]} 37... Re2 {[%clk 0:00:24.6]} 38. Rd4 {[%clk 0:00:06]} 38...
g5 {[%clk 0:00:18.6]} 39. Rg4 {[%clk 0:00:05.2]} 39... Kh6 {[%clk 0:00:17.3]}
40. f4 {[%clk 0:00:05.7]} 40... Nf5 {[%clk 0:00:14.4]} 41. Rxg5 {[%clk
0:00:05.6]} 41... Ne3 {[%clk 0:00:15]} 42. a4 {[%clk 0:00:04.9]} 42... Rb2
{[%clk 0:00:11.8]} 43. b4 {[%clk 0:00:04.5]} 43... Nxc4 {[%clk 0:00:11.5]} 44.
a5 {[%clk 0:00:05.1]} 44... Nd2 {[%clk 0:00:09.7]} 45. Rc5 {[%clk 0:00:03.7]}
45... Rb1+ {[%clk 0:00:09.8]} 46. Kf2 {[%clk 0:00:02.8]} 46... Ne4+ {[%clk
0:00:10]} 47. Ke3 {[%clk 0:00:03.6]} 47... Nxc5 {[%clk 0:00:10.9]} 48. bxc5
{[%clk 0:00:04.4]} 48... Ra1 {[%clk 0:00:11.4]} 49. Kd4 {[%clk 0:00:04.5]} 49...
Rxa5 {[%clk 0:00:11.8]} 50. g4 {[%clk 0:00:05.4]} 50... Kg6 {[%clk 0:00:12.2]}
51. h4 {[%clk 0:00:05.8]} 51... Kf6 {[%clk 0:00:12.7]} 52. h5 {[%clk 0:00:06.4]}
52... Ra4+ {[%clk 0:00:13.2]} 53. c4 {[%clk 0:00:06.9]} 53... Ra1 {[%clk
0:00:13.4]} 54. g5+ {[%clk 0:00:07.5]} 54... Kf5 {[%clk 0:00:13.9]} 55. h6
{[%clk 0:00:08.2]} 55... gxh6 {[%clk 0:00:14.8]} 56. gxh6 {[%clk 0:00:09.1]}
56... Rd1+ {[%clk 0:00:15.2]} 57. Kc3 {[%clk 0:00:09.1]} 57... Rh1 {[%clk
0:00:16.1]} 58. Kb4 {[%clk 0:00:09.9]} 58... Rxh6 {[%clk 0:00:16.6]} 59. Ka5
{[%clk 0:00:10.8]} 59... Kxf4 {[%clk 0:00:17.2]} 60. Kb6 {[%clk 0:00:11.7]}
60... Ke4 {[%clk 0:00:18]} 61. Kc7 {[%clk 0:00:12.2]} 61... Kd4 {[%clk
0:00:18.9]} 62. Kb6 {[%clk 0:00:13.1]} 62... Kxc4 {[%clk 0:00:19.5]} 63. Kc7
{[%clk 0:00:14]} 63... Kxc5 {[%clk 0:00:20]} 0-1

[Event "*** SCC Grand Prix: Titled Tuesday Blitz"]
[Site "Chess.com"]
[Date "2020.09.08"]
[Round "6"]
[White "Iball95"]
[Black "juancruzarias"]
[Result "1-0"]
[WhiteElo "2722"]
[BlackElo "2454"]
[TimeControl "180+1"]
[EndTime "11:08:16 PDT"]
[Termination "Iball95 won by resignation"]

1. d4 {[%clk 0:03:00]} 1... Nf6 {[%clk 0:03:00.3]} 2. Nf3 {[%clk 0:03:00.3]}
2... c5 {[%clk 0:02:58.6]} 3. c4 {[%clk 0:02:55.8]} 3... e6 {[%clk 0:02:43.7]}
4. g3 {[%clk 0:02:50]} 4... b6 {[%clk 0:02:24.2]} 5. d5 {[%clk 0:02:45.9]} 5...
exd5 {[%clk 0:02:22.1]} 6. cxd5 {[%clk 0:02:46.8]} 6... d6 {[%clk 0:02:22.2]} 7.
Nc3 {[%clk 0:02:44.2]} 7... g6 {[%clk 0:02:22.3]} 8. Bg2 {[%clk 0:02:43.5]} 8...
Bg7 {[%clk 0:02:22.4]} 9. O-O {[%clk 0:02:44.1]} 9... O-O {[%clk 0:02:22.3]} 10.
Nd2 {[%clk 0:02:42.1]} 10... a6 {[%clk 0:02:17.4]} 11. a4 {[%clk 0:02:42.4]}
11... Qc7 {[%clk 0:02:11]} 12. Nc4 {[%clk 0:02:42.1]} 12... Nbd7 {[%clk
0:02:05.1]} 13. Bf4 {[%clk 0:02:41]} 13... Ne8 {[%clk 0:02:04]} 14. Qb3 {[%clk
0:02:30.6]} 14... Rb8 {[%clk 0:01:58.2]} 15. Rfe1 {[%clk 0:02:29.9]} 15... h6
{[%clk 0:01:47.5]} 16. e4 {[%clk 0:02:20.9]} 16... g5 {[%clk 0:01:47.3]} 17. Be3
{[%clk 0:02:18.9]} 17... b5 {[%clk 0:01:46.5]} 18. axb5 {[%clk 0:02:19.8]} 18...
axb5 {[%clk 0:01:47]} 19. Na5 {[%clk 0:02:12.1]} 19... c4 {[%clk 0:01:39]} 20.
Qc2 {[%clk 0:01:57.9]} 20... Ne5 {[%clk 0:01:36.7]} 21. Nc6 {[%clk 0:01:36.7]}
21... Rb7 {[%clk 0:01:15.4]} 22. Nxe5 {[%clk 0:01:28.7]} 22... dxe5 {[%clk
0:01:16.3]} 23. Ra6 {[%clk 0:01:26.2]} 23... Bd7 {[%clk 0:01:12.7]} 24. Rea1
{[%clk 0:01:21.2]} 24... Nd6 {[%clk 0:01:07.9]} 25. h3 {[%clk 0:01:13.3]} 25...
b4 {[%clk 0:01:01.4]} 26. Nd1 {[%clk 0:01:10.8]} 26... f5 {[%clk 0:00:54.7]} 27.
exf5 {[%clk 0:01:08.4]} 27... Bxf5 {[%clk 0:00:55.6]} 28. Qd2 {[%clk 0:01:02.2]}
28... Qd7 {[%clk 0:00:53.7]} 29. Kh2 {[%clk 0:01:01.3]} 29... Bd3 {[%clk
0:00:50.5]} 30. b3 {[%clk 0:00:57.1]} 30... e4 {[%clk 0:00:50.3]} 31. Bc5 {[%clk
0:00:49.9]} 31... Be5 {[%clk 0:00:39.5]} 32. Qa2 {[%clk 0:00:32.6]} 32... c3
{[%clk 0:00:36.4]} 33. Rc6 {[%clk 0:00:29.5]} 33... Bb5 {[%clk 0:00:27.1]} 34.
Rb6 {[%clk 0:00:22.7]} 34... Rxb6 {[%clk 0:00:26.6]} 35. Bxb6 {[%clk 0:00:23.6]}
35... h5 {[%clk 0:00:21.9]} 36. Ne3 {[%clk 0:00:22.3]} 36... h4 {[%clk 0:00:21]}
37. Bc5 {[%clk 0:00:19.7]} 37... Rxf2 {[%clk 0:00:20.6]} 38. Qa8+ {[%clk
0:00:16.9]} 38... Rf8 {[%clk 0:00:20.1]} 39. Qa5 {[%clk 0:00:13.9]} 39... Bxg3+
{[%clk 0:00:19]} 40. Kh1 {[%clk 0:00:14.2]} 40... Be5 {[%clk 0:00:19.2]} 41.
Qxb4 {[%clk 0:00:13.6]} 41... c2 {[%clk 0:00:18.9]} 42. Rc1 {[%clk 0:00:13.4]}
42... g4 {[%clk 0:00:17]} 43. Nxg4 {[%clk 0:00:11.8]} 43... Bf4 {[%clk
0:00:15.9]} 44. Rxc2 {[%clk 0:00:12]} 44... Bd3 {[%clk 0:00:16.3]} 45. Rf2
{[%clk 0:00:11.3]} 45... Rf7 {[%clk 0:00:13.7]} 46. Rxf4 {[%clk 0:00:11.1]}
46... Rxf4 {[%clk 0:00:13.2]} 47. Bxd6 {[%clk 0:00:11.7]} 47... Rf3 {[%clk
0:00:06.1]} 48. Bxf3 {[%clk 0:00:11.1]} 48... exf3 {[%clk 0:00:07]} 49. Nf6+
{[%clk 0:00:11.3]} 1-0